fUSD/lending_fUSD_20260604
["ID","MTS","AMOUNT","RATE_DAILY","PERIOD"]
[424098734,1780588310000,-500.0,0.0003841,11]
[424098736,1780588310000,-578.12,0.0003841,11]
[424098737,1780588310000,-500.0,0.0003841,11]
[424098739,1780588310000,-2206.06,0.0003841,11]
[424098746,1780588310000,-1770.05,0.0003841,11]
[424098745,1780588310000,-500.0,0.0003841,11]
[424098743,1780588310000,-1304.95,0.0003841,11]
[424098735,1780588310000,-1219.0,0.0003841,11]
[424098738,1780588310000,-404.23485969,0.0003841,11]
[424098712,1780588310000,-1109.5,0.0003841,11]
[424098732,1780588310000,-796.43,0.0003841,11]
[424098716,1780588310000,-621.17,0.0003841,11]
[424098706,1780588310000,-1402.49,0.0003841,11]
[424098711,1780588310000,-2816.91,0.0003841,11]
[424098742,1780588310000,-868.43,0.0003841,11]
[424098685,1780588310000,-500.0,0.0003841,11]
[424098684,1780588310000,-1844.85,0.0003841,11]
[424098686,1780588310000,-2088.2,0.0003841,11]
[424098691,1780588310000,-1682.59,0.0003841,11]
[424098692,1780588310000,-500.0,0.0003841,11]
[424098693,1780588310000,-556.22,0.0003841,11]
[424098688,1780588310000,-796.08,0.0003841,11]
[424098694,1780588310000,-500.0,0.0003841,11]
[424098690,1780588310000,-1415.5,0.0003841,11]
[424098687,1780588310000,-500.0,0.0003841,11]
[424098689,1780588310000,-814.91,0.0003841,11]
[424098696,1780588310000,-500.0,0.0003841,11]
[424098718,1780588310000,-643.24,0.0003841,11]
[424098702,1780588310000,-535.34,0.0003841,11]
[424098703,1780588310000,-3203.93,0.0003841,11]
[424098705,1780588310000,-585.22,0.0003841,11]
[424098707,1780588310000,-2088.55,0.0003841,11]
[424098695,1780588310000,-1323.69,0.0003841,11]
[424098697,1780588310000,-695.41,0.0003841,11]
[424098698,1780588310000,-559.59,0.0003841,11]
[424098699,1780588310000,-1638.94,0.0003841,11]
[424098700,1780588310000,-500.0,0.0003841,11]
[424098701,1780588310000,-5256.18,0.0003841,11]
[424098708,1780588310000,-568.37,0.0003841,11]
[424098710,1780588310000,-1318.84,0.0003841,11]
[424098719,1780588310000,-1906.39,0.0003841,11]
[424098709,1780588310000,-1284.35,0.0003841,11]
[424098704,1780588310000,-1073.74,0.0003841,11]
[424098744,1780588310000,-542.58,0.0003841,2]
[424098759,1780588310000,-500.0,0.0003841,11]
[424098748,1780588310000,-1669.86,0.0003841,11]
[424098781,1780588310000,-2137.47,0.0003841,11]
[424098777,1780588310000,-1506.08,0.0003841,11]
[424098779,1780588310000,-500.0,0.0003841,11]
[424098784,1780588310000,-500.0,0.0003841,11]
[424098787,1780588310000,-654.68,0.0003841,11]
[424098786,1780588310000,-1270.77,0.0003841,11]
[424098785,1780588310000,-822.16,0.0003841,11]
[424098788,1780588310000,-1387.75,0.0003841,11]
[424098789,1780588310000,-666.39,0.0003841,11]
[424098793,1780588310000,-500.0,0.0003841,11]
[424098795,1780588310000,-500.0,0.0003841,11]
[424098791,1780588310000,-443.58727701,0.0003841,11]
[424098796,1780588310000,-1381.52,0.0003841,11]
[424098780,1780588310000,-500.0,0.0003841,11]
[424098790,1780588310000,-1712.19,0.0003841,11]
[424098792,1780588310000,-500.0,0.0003841,11]
[424098798,1780588310000,-500.0,0.0003841,11]
[424098797,1780588310000,-500.0,0.0003841,11]
[424098799,1780588310000,-500.0,0.0003841,11]
[424098808,1780588310000,-500.0,0.0003841,11]
[424098804,1780588310000,-500.0,0.0003841,11]
[424098806,1780588310000,-500.0,0.0003841,11]
[424098801,1780588310000,-640.54713512,0.0003841,11]
[424098741,1780588310000,-1296.7,0.0003841,11]
[424098802,1780588310000,-500.0,0.0003841,11]
[424098805,1780588310000,-22433.42,0.0003841,11]
[424098803,1780588310000,-170.51500702,0.0003841,11]
[424098807,1780588310000,-1696.93,0.0003841,11]
[424098794,1780588310000,-8699.07,0.0003841,11]
[424098778,1780588310000,-1479.19,0.0003841,11]
[424098800,1780588310000,-679.95,0.0003841,11]
[424098775,1780588310000,-1257.5,0.0003841,11]
[424098776,1780588310000,-671.93,0.0003841,11]
[424098757,1780588310000,-735.59,0.0003841,11]
[424098750,1780588310000,-500.0,0.0003841,11]
[424098754,1780588310000,-500.0,0.0003841,11]
[424098749,1780588310000,-1671.38,0.0003841,11]
[424098752,1780588310000,-500.0,0.0003841,11]
[424098747,1780588310000,-500.0,0.0003841,11]
[424098751,1780588310000,-616.64,0.0003841,11]
[424098753,1780588310000,-500.0,0.0003841,11]
[424098755,1780588310000,-500.0,0.0003841,11]
[424098756,1780588310000,-1150.24,0.0003841,11]
[424098760,1780588310000,-500.0,0.0003841,11]
[424098762,1780588310000,-500.0,0.0003841,11]
[424098764,1780588310000,-500.0,0.0003841,11]
[424098758,1780588310000,-500.0,0.0003841,11]
[424098763,1780588310000,-688.17,0.0003841,11]
[424098783,1780588310000,-529.56,0.0003841,11]
[424098761,1780588310000,-1498.56,0.0003841,11]
[424098782,1780588310000,-500.0,0.0003841,11]
[424098773,1780588310000,-575.5,0.0003841,11]
[424098771,1780588310000,-597.41,0.0003841,11]
[424098770,1780588310000,-500.0,0.0003841,11]
[424098774,1780588310000,-558.17,0.0003841,11]
[424098768,1780588310000,-500.0,0.0003841,11]
[424098767,1780588310000,-1775.83,0.0003841,11]
[424098769,1780588310000,-1281.57,0.0003841,11]
[424098766,1780588310000,-567.18,0.0003841,11]
[424098765,1780588310000,-2335.78,0.0003841,11]
[424098772,1780588310000,-500.0,0.0003841,11]
[424098841,1780588311000,-6540.92,0.0003841,11]
[424098839,1780588311000,-4236.79,0.0003841,11]
[424098843,1780588311000,-559.75,0.0003841,11]
[424098847,1780588311000,-500.0,0.0003841,11]
[424098842,1780588311000,-2827.26,0.0003841,11]
[424098844,1780588311000,-1332.44,0.0003841,11]
[424098846,1780588311000,-872.89,0.0003841,11]
[424098837,1780588311000,-735.0,0.0003841,11]
[424098850,1780588311000,-2893.34,0.0003841,11]
[424098848,1780588311000,-1035.72,0.0003841,11]
[424098845,1780588311000,-1726.42,0.0003841,11]
[424098840,1780588311000,-6171.29,0.0003841,11]
[424098859,1780588311000,-1315.75,0.0003841,11]
[424098851,1780588311000,-3619.93,0.0003841,11]
[424098860,1780588311000,-6191.34,0.0003841,11]
[424098857,1780588311000,-500.0,0.0003841,11]
[424098858,1780588311000,-1746.45,0.0003841,11]
[424098861,1780588311000,-500.0,0.0003841,11]
[424098852,1780588311000,-500.0,0.0003841,11]
[424098855,1780588311000,-500.0,0.0003841,11]
[424098856,1780588311000,-1827.85,0.0003841,11]
[424098854,1780588311000,-1243.1,0.0003841,11]
[424098853,1780588311000,-238.39053894,0.0003841,11]
[424098838,1780588311000,-2685.29,0.0003841,11]
[424098849,1780588311000,-5503.87,0.0003841,11]
[424098836,1780588311000,-587.94,0.0003841,11]
[424098820,1780588311000,-1616.17,0.0003841,11]
[424098831,1780588311000,-507.83,0.0003841,11]
[424098863,1780588311000,-500.0,0.0003841,11]
[424098809,1780588311000,-500.0,0.0003841,11]
[424098810,1780588311000,-3793.83,0.0003841,11]
[424098812,1780588311000,-6322.5,0.0003841,11]
[424098813,1780588311000,-800.45,0.0003841,11]
[424098811,1780588311000,-1305.5,0.0003841,11]
[424098814,1780588311000,-786.41,0.0003841,11]
[424098815,1780588311000,-500.0,0.0003841,11]
[424098821,1780588311000,-500.0,0.0003841,11]
[424098824,1780588311000,-4929.36,0.0003841,11]
[424098823,1780588311000,-2416.04,0.0003841,11]
[424098833,1780588311000,-4099.36,0.0003841,11]
[424098818,1780588311000,-555.45,0.0003841,11]
[424098816,1780588311000,-1007.14,0.0003841,11]
[424098822,1780588311000,-500.0,0.0003841,11]
[424098825,1780588311000,-4585.4,0.0003841,11]
[424098827,1780588311000,-500.0,0.0003841,11]
[424098828,1780588311000,-4003.31,0.0003841,11]
[424098826,1780588311000,-500.0,0.0003841,11]
[424098829,1780588311000,-500.0,0.0003841,11]
[424098835,1780588311000,-1144.18,0.0003841,11]
[424098832,1780588311000,-500.0,0.0003841,11]
[424098834,1780588311000,-592.31,0.0003841,11]
[424098830,1780588311000,-1528.0,0.0003841,11]
[424098819,1780588311000,-1986.1,0.0003841,11]
[424098873,1780588311000,-500.0,0.0003841,11]
[424098817,1780588311000,-3964.25,0.0003841,11]
[424098870,1780588311000,-4697.54,0.0003841,11]
[424098894,1780588311000,-972.93,0.0003841,11]
[424098895,1780588311000,-486.58545375,0.0003841,11]
[424098897,1780588311000,-2638.66,0.0003841,11]
[424098899,1780588311000,-565.67,0.0003841,11]
[424098898,1780588311000,-500.0,0.0003841,11]
[424098900,1780588311000,-500.0,0.0003841,11]
[424098907,1780588311000,-657.65,0.0003841,11]
[424098905,1780588311000,-500.0,0.0003841,11]
[424098904,1780588311000,-500.0,0.0003841,11]
[424098906,1780588311000,-500.0,0.0003841,11]
[424098909,1780588311000,-187.60670134,0.0003841,11]
[424098901,1780588311000,-500.0,0.0003841,11]
[424098908,1780588311000,-592.85,0.0003841,11]
[424098902,1780588311000,-500.0,0.0003841,11]
[424098903,1780588311000,-3955.9,0.0003841,11]
[424098911,1780588311000,-2248.49,0.0003841,11]
[424098910,1780588311000,-500.0,0.0003841,11]
[424098912,1780588311000,-1674.72,0.0003841,11]
[424098914,1780588311000,-616.44,0.0003841,11]
[424098915,1780588311000,-4418.9,0.0003841,11]
[424098918,1780588311000,-4655.38,0.0003841,11]
[424098916,1780588311000,-3867.81,0.0003841,11]
[424098919,1780588311000,-18464.54,0.0003841,11]
[424098917,1780588311000,-1445.83,0.0003841,11]
[424098865,1780588311000,-500.0,0.0003841,11]
[424098890,1780588311000,-1219.83,0.0003841,11]
[424098896,1780588311000,-500.0,0.0003841,11]
[424098913,1780588311000,-13009.88,0.0003841,11]
[424098892,1780588311000,-500.0,0.0003841,11]
[424098893,1780588311000,-1490.67,0.0003841,11]
[424098867,1780588311000,-573.61,0.0003841,11]
[424098864,1780588311000,-2862.27,0.0003841,11]
[424098862,1780588311000,-2504.92,0.0003841,11]
[424098866,1780588311000,-3404.13,0.0003841,11]
[424098872,1780588311000,-6495.39,0.0003841,11]
[424098871,1780588311000,-1447.3,0.0003841,11]
[424098868,1780588311000,-1115.69,0.0003841,11]
[424098874,1780588311000,-668.38,0.0003841,11]
[424098876,1780588311000,-2344.69,0.0003841,11]
[424098875,1780588311000,-1237.08,0.0003841,11]
[424098878,1780588311000,-4912.22,0.0003841,11]
[424098869,1780588311000,-1719.31,0.0003841,11]
[424098884,1780588311000,-500.0,0.0003841,11]
[424098880,1780588311000,-804.14,0.0003841,11]
[424098888,1780588311000,-4933.0,0.0003841,11]
[424098889,1780588311000,-1877.55,0.0003841,11]
[424098887,1780588311000,-3757.36,0.0003841,11]
[424098879,1780588311000,-1540.18,0.0003841,11]
[424098886,1780588311000,-3249.29,0.0003841,11]
[424098881,1780588311000,-500.0,0.0003841,11]
[424098885,1780588311000,-500.0,0.0003841,11]
[424098883,1780588311000,-1025.33,0.0003841,11]
[424098882,1780588311000,-4232.6,0.0003841,11]
[424098877,1780588311000,-564.69,0.0003841,11]
[424098891,1780588311000,-2981.69,0.0003841,11]
[424098938,1780588312000,-835.32,0.0003841,11]
[424098956,1780588312000,-306.46704423,0.0003841,11]
[424098943,1780588312000,-504.29,0.0003841,11]
[424098946,1780588312000,-2435.82,0.0003841,11]
[424098950,1780588312000,-1558.68,0.0003841,11]
[424098948,1780588312000,-651.79,0.0003841,11]
[424098957,1780588312000,-500.0,0.0003841,11]
[424098954,1780588312000,-3318.57,0.0003841,11]
[424098942,1780588312000,-500.0,0.0003841,11]
[424098953,1780588312000,-2027.05,0.0003841,11]
[424098947,1780588312000,-5194.46,0.0003841,11]
[424098949,1780588312000,-3071.98,0.0003841,11]
[424098952,1780588312000,-1618.42,0.0003841,11]
[424098955,1780588312000,-500.0,0.0003841,11]
[424098959,1780588312000,-535.7,0.0003841,11]
[424098958,1780588312000,-500.0,0.0003841,11]
[424098964,1780588312000,-500.0,0.0003841,11]
[424098941,1780588312000,-2139.29,0.0003841,11]
[424098963,1780588312000,-1987.23,0.0003841,11]
[424098951,1780588312000,-1496.77,0.0003841,11]
[424098939,1780588312000,-500.0,0.0003841,11]
[424098927,1780588312000,-2565.79,0.0003841,11]
[424098940,1780588312000,-615.07048296,0.0003841,11]
[424098962,1780588312000,-500.0,0.0003841,11]
[424098921,1780588312000,-924.81,0.0003841,11]
[424098920,1780588312000,-500.0,0.0003841,11]
[424098922,1780588312000,-500.0,0.0003841,11]
[424098923,1780588312000,-689.27,0.0003841,11]
[424098924,1780588312000,-2347.62,0.0003841,11]
[424098934,1780588312000,-500.0,0.0003841,11]
[424098930,1780588312000,-4400.14,0.0003841,11]
[424098929,1780588312000,-406.27791198,0.0003841,2]
[424098932,1780588312000,-1243.92,0.0003841,11]
[424098931,1780588312000,-3524.04,0.0003841,11]
[424098925,1780588312000,-500.0,0.0003841,11]
[424098928,1780588312000,-3431.02,0.0003841,11]
[424098926,1780588312000,-532.5,0.0003841,11]
[424098933,1780588312000,-10963.88,0.0003841,11]
[424098936,1780588312000,-2549.61,0.0003841,11]
[424098937,1780588312000,-765.19,0.0003841,11]
[424098935,1780588312000,-459.59121513,0.0003841,11]
[424098944,1780588312000,-301.25308573,0.0003841,11]
[424098945,1780588312000,-6011.37,0.0003841,11]
[424098968,1780588312000,-500.0,0.0003841,11]
[424098966,1780588312000,-500.0,0.0003841,11]
[424098969,1780588312000,-7905.63,0.0003841,11]
[424098990,1780588312000,-4714.4,0.0003841,11]
[424098999,1780588312000,-2607.36,0.0003841,11]
[424098997,1780588312000,-3364.49,0.0003841,11]
[424098987,1780588312000,-12126.33,0.0003841,11]
[424098989,1780588312000,-70047.92,0.0003841,11]
[424098998,1780588312000,-7063.44,0.0003841,11]
[424098994,1780588312000,-5085.08,0.0003841,11]
[424098995,1780588312000,-4929.49,0.0003841,11]
[424098993,1780588312000,-18959.97,0.0003841,11]
[424099000,1780588312000,-1657.0,0.0003841,11]
[424099002,1780588312000,-17139.89,0.0003841,11]
[424099001,1780588312000,-500.0,0.0003841,11]
[424099003,1780588312000,-23545.41,0.0003841,11]
[424099008,1780588312000,-500.0,0.0003841,11]
[424099005,1780588312000,-2349.68,0.0003841,11]
[424099004,1780588312000,-5468.29,0.0003841,11]
[424099007,1780588312000,-4419.84,0.0003841,11]
[424098961,1780588312000,-3830.78,0.0003841,11]
[424099006,1780588312000,-3664.87,0.0003841,11]
[424098992,1780588312000,-619.85,0.0003841,11]
[424098996,1780588312000,-500.0,0.0003841,11]
[424098991,1780588312000,-1239.79,0.0003841,11]
[424098986,1780588312000,-1349.91,0.0003841,11]
[424098970,1780588312000,-539.62848467,0.0003841,11]
[424098988,1780588312000,-4656.4,0.0003841,11]
[424098965,1780588312000,-3479.86,0.0003841,11]
[424098967,1780588312000,-7050.67,0.0003841,11]
[424098971,1780588312000,-500.0,0.0003841,11]
[424098974,1780588312000,-9329.2,0.0003841,11]
[424098973,1780588312000,-500.0,0.0003841,11]
[424098975,1780588312000,-2805.06,0.0003841,11]
[424098972,1780588312000,-500.0,0.0003841,11]
[424098977,1780588312000,-1273.8,0.0003841,11]
[424098960,1780588312000,-9952.92,0.0003841,11]
[424098976,1780588312000,-4135.57,0.0003841,11]
[424098978,1780588312000,-2318.0,0.0003841,11]
[424098985,1780588312000,-752.71,0.0003841,11]
[424098981,1780588312000,-5281.63017547,0.0003841,11]
[424098984,1780588312000,-4487.82,0.0003841,11]
[424098983,1780588312000,-500.0,0.0003841,11]
[424098980,1780588312000,-3011.82982453,0.0003841,11]
[424098979,1780588312000,-500.0,0.0003841,11]
[424098982,1780588312000,-12991.84,0.0003841,11]
[424099039,1780588313000,-1872.52,0.0003841,11]
[424099025,1780588313000,-644.58,0.0003841,11]
[424099034,1780588313000,-2180.38,0.0003841,2]
[424099029,1780588313000,-317.91942815,0.0003841,11]
[424099035,1780588313000,-500.0,0.0003841,11]
[424099032,1780588313000,-4509.95,0.0003841,11]
[424099027,1780588313000,-669.14,0.0003841,11]
[424099040,1780588313000,-1368.65,0.0003841,11]
[424099038,1780588313000,-2041.77,0.0003841,11]
[424099042,1780588313000,-6703.45,0.0003841,11]
[424099044,1780588313000,-3815.17037443,0.0003841,11]
[424099041,1780588313000,-4231.71,0.0003841,11]
[424099045,1780588313000,-283.03798925,0.0003841,11]
[424099055,1780588313000,-286.026248,0.00037863,30]
[424099047,1780588313000,-14865.35999999,0.00027397,10]
[424099046,1780588313000,-1134.07000001,0.00027397,10]
[424099048,1780588313000,-171.53,0.00028634,30]
[424099031,1780588313000,-3076.64,0.0003841,11]
[424099043,1780588313000,-1231.11,0.0003841,2]
[424099033,1780588313000,-2104.72,0.0003841,11]
[424099011,1780588313000,-5124.59,0.0003841,11]
[424099030,1780588313000,-2874.69,0.0003841,11]
[424099050,1780588313000,-300.0,0.00034794,2]
[424099009,1780588313000,-2301.72,0.0003841,11]
[424099010,1780588313000,-500.0,0.0003841,11]
[424099013,1780588313000,-450.05120684,0.0003841,11]
[424099024,1780588313000,-3118.2,0.0003841,11]
[424099012,1780588313000,-2392.79,0.0003841,11]
[424099023,1780588313000,-6551.76,0.0003841,7]
[424099021,1780588313000,-2137.98,0.0003841,11]
[424099014,1780588313000,-3260.93,0.0003841,11]
[424099017,1780588313000,-500.0,0.0003841,11]
[424099019,1780588313000,-509.21,0.0003841,11]
[424099020,1780588313000,-2570.22,0.0003841,11]
[424099015,1780588313000,-19492.69,0.0003841,11]
[424099018,1780588313000,-5156.72,0.0003841,11]
[424099016,1780588313000,-500.0,0.0003841,11]
[424099022,1780588313000,-500.0,0.0003841,11]
[424099026,1780588313000,-4270.24,0.0003841,11]
[424099036,1780588313000,-6148.09,0.0003841,11]
[424099037,1780588313000,-500.0,0.0003841,11]
[424099028,1780588313000,-500.0,0.0003841,11]
[424099049,1780588313000,-286.026248,0.00028842,7]
[424099071,1780588313000,-543.21358945,0.00038465,11]
[424099053,1780588313000,-3641.0,0.00037701,2]
[424099075,1780588313000,-530.56,0.00038465,11]
[424099080,1780588313000,-500.0,0.00038465,11]
[424099090,1780588313000,-556.22,0.00038465,11]
[424099079,1780588313000,-359.49062893,0.00038465,11]
[424099083,1780588313000,-2088.2,0.00038465,11]
[424099082,1780588313000,-500.0,0.00038465,11]
[424099085,1780588313000,-796.08,0.00038465,11]
[424099089,1780588313000,-291.4311043,0.00038465,11]
[424099076,1780588313000,-1494.59,0.00038465,11]
[424099084,1780588313000,-500.0,0.00038465,11]
[424099086,1780588313000,-814.91,0.00038465,11]
[424099088,1780588313000,-1682.59,0.00038465,11]
[424099092,1780588313000,-1323.69,0.00038465,11]
[424099093,1780588313000,-500.0,0.00038465,11]
[424099094,1780588313000,-695.41,0.00038465,11]
[424099091,1780588313000,-500.0,0.00038465,11]
[424099096,1780588313000,-836.33987964,0.00038465,11]
[424099095,1780588313000,-559.59,0.00038465,11]
[424099081,1780588313000,-1844.85,0.00038465,11]
[424099077,1780588313000,-561.09,0.00038465,11]
[424099087,1780588313000,-1415.5,0.00038465,11]
[424099073,1780588313000,-500.0,0.00038465,11]
[424099074,1780588313000,-500.0,0.00038465,11]
[424099054,1780588313000,-286.026248,0.00037808,30]
[424099052,1780588313000,-286.026248,0.00036656,30]
[424099057,1780588313000,-43.77163632,0.0003841,11]
[424099058,1780588313000,-1825.07,0.0003841,11]
[424099056,1780588313000,-286.026248,0.00037917,30]
[424099062,1780588313000,-1343.57,0.0003841,11]
[424099061,1780588313000,-500.0,0.0003841,11]
[424099067,1780588313000,-500.0,0.00038465,11]
[424099059,1780588313000,-4634.36,0.0003841,11]
[424099051,1780588313000,-300.0,0.00034794,2]
[424099060,1780588313000,-5441.17,0.0003841,11]
[424099072,1780588313000,-500.0,0.00038465,11]
[424099068,1780588313000,-502.32487565,0.00038465,11]
[424099078,1780588313000,-500.0,0.00038465,10]
[424099069,1780588313000,-595.65,0.00038465,11]
[424099070,1780588313000,-627.84924325,0.00038465,11]
[424099064,1780588313000,-152.0,0.00038418,8]
[424099065,1780588313000,-520.31524822,0.00038464,11]
[424099063,1780588313000,-502.32487565,0.0003841,11]
[424099066,1780588313000,-1323.0,0.00038465,2]
[424099098,1780588314000,-159.23,0.00028652,2]
[424099105,1780588314000,-444.38778338,0.00038465,11]
[424099099,1780588314000,-171.53,0.00029134,7]
[424099097,1780588314000,-507.0,0.00027137,2]
[424099100,1780588314000,-286.026248,0.00036656,30]
[424099102,1780588314000,-500.0,0.00038465,11]
[424099101,1780588314000,-802.60012036,0.00038465,11]
[424099103,1780588314000,-208.16868128,0.00038465,11]
[424099104,1780588314000,-2878.629898,0.00038465,11]
[424099107,1780588314000,-159.23,0.00028768,7]
[424099106,1780588314000,-338.6360579,0.00038465,11]
[424099115,1780588314000,-358.0560249,0.00038465,11]
[424099113,1780588314000,-585.22,0.00038465,11]
[424099114,1780588314000,-1073.74,0.00038465,11]
[424099110,1780588314000,-1386.35757944,0.00038465,11]
[424099111,1780588314000,-535.34,0.00038465,11]
[424099109,1780588314000,-286.026248,0.00037808,30]
[424099108,1780588314000,-507.0,0.0002896,4]
[424099112,1780588314000,-3203.93,0.00038465,11]
[424099124,1780588335000,152.0,0.00029251,120]
[424099122,1780588335000,152.0,0.00014838,7]
[424099121,1780588335000,-30.0,0.00014901,2]
[424099120,1780588335000,-152.0,0.00014901,2]
[424099119,1780588335000,152.0,0.00014817,7]
[424099118,1780588335000,152.0,0.00014817,7]
[424099117,1780588335000,152.0,0.00014817,7]
[424099116,1780588335000,152.0,0.00014796,7]
[424099123,1780588335000,152.0,0.00029251,120]
[424099125,1780588372000,-122.0,0.00014901,2]
[424099126,1780588388000,268.513773,7.945e-05,2]
[424099127,1780588391000,152.0,0.00014845,7]
[424099128,1780588391000,152.0,0.00014875,7]
[424099129,1780588392000,152.0,0.00029251,120]
[424099130,1780588425000,-263.77,0.00014998,2]
[424099131,1780588440000,-219.2451252,0.00014998,2]
[424099133,1780588454000,-78.1980859,0.00014998,2]
[424099132,1780588454000,2500.0,0.00027889,120]
[424099134,1780588456000,163.08,0.00027596,120]
[424099135,1780588459000,152.0,0.00014799,7]
[424099136,1780588477000,151.77870129,0.00014998,7]
[424099137,1780588478000,151.77870129,0.00015298,7]
[424099138,1780588493000,1000.0,0.00026785,120]
[424099139,1780588506000,-171.7,0.00014998,2]
[424099140,1780588519000,-171.7,0.00014997,2]
[424099141,1780588532000,-196.54,0.00014997,2]
[424099142,1780588533000,-400.0,0.00014997,2]
[424099143,1780588545000,-196.54,0.00014997,2]
[424099144,1780588559000,-163.31,0.00014997,2]
[424099145,1780588560000,200.0,0.00023,120]
[424099146,1780588565000,200.0,0.00023,120]
[424099147,1780588575000,200.0,0.00023,120]
[424099148,1780588596000,200.0,0.00023,120]
[424099149,1780588607000,200.0,0.00023,120]
[424099151,1780588654000,158.80357709,0.00014199,2]
[424099152,1780588658000,191.46287603,0.00015298,7]
[424099153,1780588658000,43.82326359,0.00015298,7]
[424099154,1780588665000,152.0,0.00014833,7]
[424099155,1780588670000,250.0,0.00023,120]
[424099157,1780588698000,351.78873232,0.00014197,2]
[424099156,1780588698000,364.68071169,0.00014199,2]
[424099158,1780588711000,289.51,0.00023,120]
[424099170,1780588748000,-500.0,0.00014997,2]
[424099173,1780588748000,-500.0,0.00014997,2]
[424099172,1780588748000,-500.0,0.00014997,2]
[424099171,1780588748000,-500.0,0.00014997,2]
[424099169,1780588748000,-500.0,0.00014997,2]
[424099168,1780588748000,-220.84281252,0.00014997,2]
[424099166,1780588748000,-573.48649026,0.00014997,2]
[424099165,1780588748000,-500.0,0.00014997,2]
[424099174,1780588748000,-500.0,0.00014997,2]
[424099162,1780588748000,-500.16872429,0.00014997,2]
[424099163,1780588748000,-500.0,0.00014997,2]
[424099164,1780588748000,-500.0,0.00014997,2]
[424099161,1780588748000,-256.29809616,0.00014997,2]
[424099160,1780588748000,-500.0,0.00014997,2]
[424099159,1780588748000,-71.91,0.00014997,2]
[424099167,1780588748000,-500.0,0.00014997,2]
[424099175,1780588748000,-500.0,0.00014997,2]
[424099187,1780588748000,-500.0,0.00014997,2]
[424099177,1780588748000,-500.0,0.00014997,2]
[424099193,1780588748000,-500.0,0.00014997,2]
[424099190,1780588748000,-500.0,0.00014997,2]
[424099192,1780588748000,-500.0,0.00014997,2]
[424099176,1780588748000,-500.0,0.00014997,2]
[424099189,1780588748000,-500.0,0.00014997,2]
[424099188,1780588748000,-500.0,0.00014997,2]
[424099186,1780588748000,-500.0,0.00014997,2]
[424099191,1780588748000,-500.0,0.00014997,2]
[424099182,1780588748000,-500.0,0.00014997,2]
[424099185,1780588748000,-500.0,0.00014997,2]
[424099183,1780588748000,-500.0,0.00014997,2]
[424099178,1780588748000,-500.0,0.00014997,2]
[424099180,1780588748000,-500.0,0.00014997,2]
[424099181,1780588748000,-500.0,0.00014997,2]
[424099179,1780588748000,-585.79120228,0.00014997,2]
[424099184,1780588748000,-500.0,0.00014997,2]
[424099195,1780588749000,-500.0,0.00014997,2]
[424099196,1780588749000,-500.0,0.00014997,2]
[424099197,1780588749000,-500.0,0.00014997,2]
[424099202,1780588749000,-297.50267449,0.00014997,2]
[424099199,1780588749000,-500.0,0.00014997,2]
[424099200,1780588749000,-500.0,0.00014997,2]
[424099201,1780588749000,-500.0,0.00014997,2]
[424099198,1780588749000,-500.0,0.00014997,2]
[424099194,1780588749000,-500.0,0.00014997,2]